bitfinex/quotes_ETHUSD_20250602
["timestamp","ask_amount","ask_price","bid_price","bid_amount"]
[1748857513628,19.81677346,2479.9,2479.8,3.00321805]
[1748857513830,20.36677346,2479.9,2479.8,3.00321805]
[1748857514131,12.764,2479.9,2479.8,3.00321805]
[1748857514335,11.5703528,2479.9,2479.8,3.00321805]
[1748857514497,9.23882528,2479.9,2479.8,3.00321805]
[1748857514710,4.214,2479.9,2479.8,3.00321805]
[1748857514913,0.817,2480.6,2480.2,4.03182835]
[1748857515114,5.031,2480.6,2480.1,4.03193477]
[1748857515350,9.00191051,2480.6,2479.9,0.0403188]
[1748857515550,0.817,2480.6,2479.9,0.41705368]
[1748857515772,15.7843528,2480.9,2480.1,4.03209548]
[1748857515911,8.48866022,2481.1,2480.6,0.8138]
[1748857515912,3.64109771,2481.1,2480.6,0.8138]
[1748857516116,3.64109771,2481.1,2481.0,4.0306328]
[1748857516633,3.64109771,2481.1,2480.5,11.81576677]
[1748857516634,4.03219897,2480.1,2479.8,3.00321805]
[1748857516816,0.7997,2480.5,2479.8,3.00321805]
[1748857516817,3.5703528,2479.9,2479.8,3.30353986]
[1748857517246,6.86944337,2480.1,2479.8,3.30353986]
[1748857517453,4.03242066,2479.9,2479.8,3.00321805]
[1748857517653,10.90164002,2480.1,2479.8,3.00321805]
[1748857517882,4.03228305,2480.0,2479.8,3.00321805]
[1748857518043,4.03242066,2479.9,2479.8,3.00321805]
[1748857518414,17.04122066,2479.9,2479.8,3.00321805]
[1748857518745,20.38551458,2479.9,2479.8,3.00321805]
[1748857519051,20.7908323,2479.9,2479.8,3.00321805]
[1748857520040,20.2408323,2479.9,2479.8,3.00321805]
[1748857520956,20.7908323,2479.9,2479.8,3.00321805]
[1748857522171,23.44627567,2479.9,2479.8,3.00321805]
[1748857522331,27.66127567,2479.9,2479.8,3.00321805]
[1748857522923,23.62885501,2479.9,2479.8,3.00321805]
[1748857523129,6.86944337,2480.4,2479.8,7.03580132]
[1748857523432,8.0,2480.0,2479.8,3.00321805]
[1748857524052,0.7897,2480.6,2479.8,3.00321805]
[1748857524053,4.216,2480.3,2479.9,4.03233676]
[1748857524325,11.69055035,2480.6,2480.0,4.03225806]
[1748857524542,11.69055035,2480.6,2480.0,0.04031995]
[1748857524543,13.8508271,2480.6,2480.0,0.04031995]
[1748857524726,6.86944337,2480.6,2480.1,4.03209548]
[1748857524948,6.86944337,2480.6,2480.2,4.0319294]
[1748857525151,4.81101555,2480.9,2480.1,0.0403167]
[1748857525152,7.64954337,2480.9,2480.1,0.0403167]
[1748857525353,7.64954337,2480.9,2480.0,0.7582]
[1748857525354,4.218,2480.8,2480.3,4.03163376]
[1748857525554,8.0,2480.7,2480.3,4.03163376]
[1748857526072,16.97199464,2480.7,2480.0,0.7582]
[1748857526244,6.86944337,2480.1,2479.8,3.00321805]
[1748857526440,6.86944337,2480.1,2479.8,7.03570319]
[1748857526653,6.86944337,2480.1,2479.9,4.03227185]
[1748857526854,0.39965797,2480.7,2479.9,0.04032066]
[1748857527054,6.86944337,2480.7,2479.9,0.41705387]
[1748857527259,6.86944337,2480.4,2479.8,3.00321805]
[1748857527484,12.03242066,2479.9,2479.8,3.00321805]
[1748857527767,8.0,2479.9,2479.8,3.00321805]
[1748857527967,12.58242066,2479.9,2479.8,3.00321805]
[1748857528578,12.03242066,2479.9,2479.8,3.00321805]
[1748857528759,12.61936206,2479.9,2479.8,3.00321805]
[1748857529080,13.16936206,2479.9,2479.8,3.00321805]
[1748857530635,20.03880543,2479.9,2479.8,3.00321805]
[1748857531482,19.48880543,2479.9,2479.8,3.00321805]
[1748857531785,4.03290853,2479.6,2479.1,0.01]
[1748857531958,8.27292614,2479.6,2479.1,0.01]
[1748857532167,4.03298332,2479.6,2479.1,4.04362124]
[1748857532352,2.35210783,2479.8,2479.1,0.01]
[1748857532682,4.03293428,2479.6,2479.1,4.04367273]
[1748857532875,15.1440531,2479.8,2479.2,5.17346191]
[1748857532876,4.03282185,2479.7,2479.2,5.17346191]
[1748857533072,4.03279337,2479.7,2479.2,1.14]
[1748857533268,15.14411629,2479.8,2479.2,4.03341475]
[1748857533481,4.03286078,2479.7,2479.2,5.17354613]
[1748857533896,4.03276182,2479.7,2479.2,5.17347061]
[1748857534096,4.03274909,2479.7,2479.2,5.1734836]
[1748857534500,0.7725,2480.6,2479.3,5.36689851]
[1748857534662,4.251,2480.5,2479.8,4.03242814]
[1748857534861,4.251,2480.5,2479.5,0.04032234]
[1748857535063,1.17716972,2480.6,2479.7,8.0]
[1748857535258,4.43597653,2480.6,2480.1,4.03202236]
[1748857535573,11.12044337,2480.8,2480.1,1.14]
[1748857535774,4.03112267,2480.7,2480.2,4.03185862]
[1748857535969,0.7725,2480.9,2480.2,4.0319329]
[1748857536203,0.7725,2480.9,2480.4,4.03151036]
[1748857536375,0.69796042,2480.8,2480.4,4.03151036]
[1748857536575,0.69796042,2480.8,2480.2,4.03186677]
[1748857536576,4.72893669,2480.8,2480.3,4.03170454]
[1748857537095,7.56740379,2480.8,2479.9,4.84749186]
[1748857537298,4.03137499,2480.6,2480.1,4.03207858]
[1748857537462,0.69796042,2480.8,2480.0,9.14]
[1748857537796,0.7725,2480.9,2480.2,4.0319329]
[1748857537797,4.248,2480.9,2480.2,4.0319329]
[1748857537958,4.248,2480.9,2480.1,5.4308152]
[1748857538165,4.248,2480.9,2480.4,4.03145707]
[1748857538397,4.248,2480.9,2480.1,1.39875524]
[1748857538398,4.248,2480.9,2480.5,4.03136981]
[1748857538603,0.33646953,2480.8,2480.4,4.03154001]
[1748857538807,0.33646953,2480.8,2480.2,4.0319329]
[1748857539099,0.33646953,2480.8,2480.7,4.03112024]
[1748857539502,0.33646953,2480.8,2480.2,4.7909493]
[1748857539503,11.4519129,2480.8,2479.8,1.14]
[1748857539805,0.33646953,2480.8,2480.3,4.03176174]
[1748857540015,0.33646953,2480.8,2479.9,0.8082]
[1748857540296,4.03121976,2480.7,2480.2,4.03180013]
[1748857540599,5.4340332,2480.7,2480.1,5.17208336]
[1748857540906,5.4340332,2480.7,2480.2,5.17186695]
[1748857541472,1.40281344,2480.7,2480.2,1.14]
[1748857541693,1.40281344,2480.7,2480.3,4.03175911]
[1748857541894,0.8038,2480.6,2480.3,4.03175911]
[1748857542076,11.12163226,2480.5,2480.0,4.03215162]
[1748857542397,6.86944337,2480.7,2480.3,4.03165345]
[1748857542599,11.14244337,2480.8,2480.0,4.03225806]
[1748857542790,6.86944337,2480.8,2480.0,4.03225806]
[1748857543100,6.86944337,2480.8,2480.4,4.03152299]
[1748857543264,6.86944337,2480.8,2480.4,5.17152299]
[1748857543716,6.86944337,2480.8,2480.5,4.03131393]
[1748857543886,6.86944337,2480.8,2480.4,1.14]
[1748857544203,6.86944337,2480.8,2480.5,4.03137075]
[1748857544428,6.86944337,2480.8,2480.4,5.17151619]
[1748857544565,12.53849709,2480.8,2480.4,1.14]
[1748857544770,8.5074787,2480.8,2480.4,5.17159319]
[1748857545169,12.53849911,2480.8,2480.3,4.03176323]
[1748857545371,4.03123547,2480.7,2480.4,1.14]
[1748857545573,1.25387142,2480.6,2480.4,1.14]
[1748857545908,11.54374398,2481.0,2480.4,1.14]
[1748857546121,11.54374398,2481.0,2480.5,4.03134401]
[1748857546122,15.57445455,2481.0,2480.5,4.03134401]
[1748857546286,15.57445455,2481.0,2480.6,4.03127989]
[1748857546287,11.54374398,2481.0,2480.6,4.03127989]
[1748857546489,15.57440118,2481.0,2480.5,4.03136077]
[1748857546723,4.67430061,2481.0,2480.4,1.14]
[1748857546925,2.43780026,2481.0,2480.6,4.03112622]
[1748857547234,4.03063715,2481.0,2480.5,4.03143852]
[1748857547402,4.03090116,2480.9,2480.4,5.17153924]
[1748857547786,10.90049381,2480.8,2480.3,4.78604062]
[1748857547996,6.86944337,2480.5,2480.0,0.7543]
[1748857548292,6.86944337,2480.2,2480.0,4.03218268]
[1748857548545,10.90098736,2480.5,2480.0,4.03218268]
[1748857548705,1.17016874,2480.4,2479.9,1.14]
[1748857548909,1.17016874,2480.4,2480.1,4.03199103]
[1748857549519,1.17016874,2480.4,2480.2,4.03178814]
[1748857549761,1.17016874,2480.4,2480.1,4.03199877]
[1748857550348,6.86944337,2480.5,2480.3,4.03166489]
[1748857550533,0.7501,2480.9,2480.6,4.03112504]
[1748857550848,4.78089801,2480.9,2480.5,4.03137483]
[1748857551054,4.78089801,2480.9,2480.4,4.03153547]
[1748857551231,11.37858395,2480.8,2480.4,1.14]
[1748857551403,7.34753317,2480.8,2480.4,1.14]
[1748857551611,7.34753317,2480.8,2480.5,4.03134621]
[1748857552056,7.34753317,2480.8,2480.4,1.14]
[1748857552205,11.37849669,2480.8,2480.5,1.14]
[1748857552457,1.21285967,2480.7,2480.5,1.14]
[1748857553283,1.21285967,2480.7,2480.3,5.17170106]
[1748857553284,5.24398262,2480.7,2480.3,5.17170106]
[1748857553459,1.21285967,2480.7,2480.3,5.17170106]
[1748857554356,1.21285967,2480.7,2480.4,4.03150038]
[1748857554559,1.21285967,2480.7,2480.5,4.03134853]
[1748857555011,6.86944337,2480.8,2480.3,1.14]
[1748857555012,0.7501,2480.9,2480.6,4.03116517]
[1748857555173,0.41102627,2481.0,2480.7,4.03105416]
[1748857555378,4.8161877,2481.3,2480.6,4.03120235]
[1748857555379,10.89994108,2481.1,2480.6,4.03120235]
[1748857555579,4.03065412,2481.0,2480.5,4.03136249]
[1748857556281,4.43005428,2481.0,2480.5,4.03136249]
[1748857556607,2.35998764,2481.0,2480.7,4.03109528]
[1748857556771,2.35998764,2481.0,2480.6,4.03120505]
[1748857557098,2.35998764,2481.0,2480.7,4.0310119]
[1748857557260,2.35998764,2481.0,2480.6,4.03119201]
[1748857557595,2.35998764,2481.0,2480.8,4.03087917]
[1748857557894,6.86944337,2481.1,2480.8,4.03089359]
[1748857558079,6.86944337,2481.1,2480.7,4.0311202]
[1748857558287,10.89999943,2481.1,2480.6,4.03125144]
[1748857558499,10.89999943,2481.1,2480.4,4.85009279]
[1748857558500,6.86944337,2481.1,2480.4,4.85009279]
[1748857558715,6.86944337,2481.1,2480.9,4.03078871]
[1748857559005,0.786,2481.3,2481.1,4.03032249]
[1748857559226,0.40923602,2481.5,2481.2,4.0301672]
[1748857559677,0.40923602,2481.5,2481.2,4.03024863]
[1748857560263,0.40923602,2481.5,2481.3,4.0301453]
[1748857560499,0.40923602,2481.5,2481.0,1.14]
[1748857560674,11.13844337,2481.7,2481.4,4.02989334]
[1748857560873,11.13844337,2481.7,2481.4,4.02990593]
[1748857561105,11.13844337,2481.7,2481.1,4.03047035]
[1748857561273,6.86944337,2481.7,2481.1,0.59999704]
[1748857561462,6.86944337,2481.7,2481.0,1.14]
[1748857561463,10.89897059,2481.7,2481.0,1.14]
[1748857561664,6.86944337,2481.7,2481.2,4.03015729]
[1748857561878,6.86944337,2481.7,2481.1,4.03035526]
[1748857561879,4.0297943,2481.6,2481.1,4.03035526]
[1748857562097,4.0297943,2481.6,2481.2,5.18829832]
[1748857562405,4.84757599,2481.8,2481.2,1.158]
[1748857562406,6.86944337,2481.4,2481.2,1.158]
[1748857564199,6.86944337,2481.5,2481.3,4.03004108]
[1748857564400,6.86944337,2481.5,2481.2,5.18819179]
[1748857564915,6.86944337,2481.5,2481.2,1.158]
[1748857565220,6.86944337,2481.6,2481.3,4.03014052]
[1748857568106,6.86944337,2481.6,2481.4,4.02991173]
[1748857568641,0.01,2481.9,2481.4,1.31479117]
[1748857568800,0.01,2481.9,2481.8,4.02933354]
[1748857569473,0.01,2481.9,2481.4,1.31479117]
[1748857569680,0.01,2481.9,2481.7,4.02939989]
[1748857570011,0.01,2481.9,2481.8,4.02933354]
[1748857570188,0.01,2481.9,2481.7,4.02941299]
[1748857570385,0.01,2481.9,2481.8,4.06962511]
[1748857570585,0.01,2481.9,2481.8,17.16022511]
[1748857570786,0.01,2481.9,2481.8,17.11993354]
[1748857575929,0.01,2481.9,2481.8,18.26993354]
[1748857577638,0.01,2481.9,2481.8,18.26893354]
[1748857577824,0.01,2481.9,2481.8,19.40629291]
[1748857578423,0.01,2481.9,2481.8,19.95629291]
[1748857580006,0.01,2481.9,2481.8,24.70629291]
[1748857581220,0.01,2481.9,2481.8,33.40929291]
[1748857583763,0.01,2482.9,2482.8,4.82121064]
[1748857583921,0.01,2482.9,2482.8,18.78326685]
[1748857584257,0.01,2482.9,2482.8,18.74300181]
[1748857593146,0.01,2482.9,2482.8,12.54650181]
[1748857593363,0.01,2482.9,2482.8,13.16371064]
[1748857593559,0.01,2482.9,2482.8,1.136]
[1748857594431,0.01,2482.9,2482.8,4.02771064]
[1748857594751,0.01,2482.9,2482.8,5.16371064]
[1748857595858,0.01,2482.9,2482.8,6.48840417]
[1748857597031,0.01,2482.9,2482.8,5.16371064]
[1748857598869,0.01,2482.9,2482.8,4.02771064]
[1748857599295,0.01,2482.9,2482.0,1.136]
[1748857599296,0.7589,2482.6,2482.0,1.136]
[1748857599595,0.7589,2482.6,2482.0,9.136]
[1748857599768,0.7589,2482.6,2482.0,13.16493721]
[1748857599769,4.02831778,2482.5,2482.0,13.16493721]
[1748857600068,4.02831778,2482.5,2481.9,1.136]
[1748857600069,4.78750817,2482.3,2481.9,1.136]
[1748857600578,1.6589,2482.3,2481.9,5.16502444]
[1748857600735,0.9,2482.3,2482.2,4.02868423]
[1748857601559,0.9,2482.3,2482.0,4.02894401]
[1748857601560,0.9,2482.3,2482.0,4.02893165]
[1748857601741,0.9,2482.3,2482.1,1.136]
[1748857601948,0.7611,2482.2,2482.0,8.0]
[1748857602143,0.7611,2482.2,2481.9,4.02916476]
[1748857602343,0.7611,2482.2,2481.4,4.02991373]
[1748857602344,7.63054337,2482.2,2482.0,1.136]
[1748857602555,7.63054337,2482.2,2481.9,1.136]
[1748857602772,7.63054337,2482.2,2481.9,5.16514844]
[1748857603304,0.7611,2482.2,2482.0,4.02891609]
[1748857603655,0.7611,2482.2,2481.9,5.16507999]
[1748857605391,0.7611,2482.2,2481.9,1.136]
[1748857605685,0.7611,2482.2,2481.0,9.34038568]
[1748857605686,8.31748402,2482.2,2481.0,9.34038568]
[1748857605896,12.34625955,2482.2,2481.8,1.136]
[1748857606054,4.0288737,2482.1,2481.8,1.136]
[1748857606252,6.86944337,2481.9,2481.0,9.4945]
[1748857606465,6.86944337,2481.6,2481.3,1.136]
[1748857606787,0.7536,2481.4,2481.3,1.136]
[1748857607661,4.03023753,2481.3,2481.0,8.699]
[1748857608271,0.7536,2481.4,2481.0,8.699]
[1748857608473,4.03017603,2481.3,2481.0,8.699]
[1748857608713,0.7536,2481.4,2481.0,8.699]
[1748857608714,4.78367215,2481.4,2481.0,8.699]
[1748857608997,1.30595953,2481.3,2481.0,8.699]
[1748857610505,0.9,2481.1,2481.0,8.699]
[1748857610671,0.9,2481.1,2481.0,12.7296328]
[1748857610873,0.9,2481.1,2481.0,8.699]
[1748857612484,0.9,2481.1,2481.0,12.7296328]
[1748857613873,1.7087,2481.1,2480.9,1.136]
[1748857614091,12.82014337,2481.1,2480.9,1.136]
[1748857614292,1.28201434,2481.0,2480.9,1.136]
[1748857615179,15.94970735,2481.1,2480.9,1.136]
[1748857615383,4.0306328,2481.0,2480.9,1.136]
[1748857615583,0.8082,2480.8,2480.1,1.146]
[1748857615791,0.8082,2480.5,2480.1,5.17802193]
[1748857615995,0.8082,2480.5,2480.2,4.03183724]
[1748857616209,6.43502854,2480.5,2480.1,1.146]
[1748857616685,4.03160835,2480.4,2480.1,1.146]
[1748857617000,4.03160835,2480.4,2480.1,0.01]
[1748857617001,0.7503,2480.2,2480.1,0.01]
[1748857617683,12.15110627,2480.2,2480.1,0.01]
[1748857618580,8.11917337,2480.2,2480.1,0.01]
[1748857618789,1.24973,2480.2,2480.1,0.01]
[1748857618985,1.24973,2480.2,2480.1,4.04209548]
[1748857618986,0.7503,2480.2,2480.1,4.04209548]
[1748857619208,0.8175,2480.5,2480.4,4.0316078]
[1748857620396,0.9,2480.6,2480.4,4.0316078]
[1748857620397,0.9,2480.6,2480.5,4.03144527]
[1748857621420,0.9,2480.6,2480.4,4.03152452]
[1748857621732,0.9,2480.6,2480.5,4.03144527]
[1748857622643,0.9,2480.6,2480.4,4.03147927]
[1748857622829,0.9,2480.6,2480.3,4.03168121]
[1748857623565,1.8995479,2480.6,2480.2,4.03192555]
[1748857623858,1.8995479,2480.6,2480.1,0.01]
[1748857623859,4.244,2480.5,2480.4,4.0316078]
[1748857624052,0.9,2480.6,2480.2,4.0319329]
[1748857624354,0.9,2480.6,2480.5,4.03144527]
[1748857624508,0.9,2480.6,2480.5,4.92254876]
[1748857626429,4.65063967,2481.2,2480.9,4.03077908]
[1748857626740,4.65063967,2481.2,2480.5,4.92254876]
[1748857626741,4.64863967,2481.2,2480.5,4.03144527]
[1748857626911,4.243,2481.2,2480.4,0.8077]
[1748857627111,4.243,2481.2,2480.8,4.03094619]
[1748857627333,1.59542834,2481.1,2480.4,4.8392101]
[1748857627551,0.8101,2481.0,2480.7,4.03105461]
[1748857627754,0.8101,2481.0,2480.6,4.03128275]
[1748857627965,5.0531,2481.0,2480.8,4.03093819]
[1748857628168,5.0531,2481.0,2480.9,4.03079527]
[1748857628771,4.243,2481.0,2480.9,4.03079527]
[1748857629276,4.78431523,2481.0,2480.5,1.143]
[1748857629441,4.78431523,2481.0,2480.5,4.03137509]
[1748857629639,0.768,2480.9,2480.6,4.03120663]
[1748857630063,0.768,2480.9,2480.5,4.03136622]
[1748857630237,6.86944337,2480.8,2480.4,4.03151605]
[1748857630439,7.42467489,2480.8,2480.0,4.85115393]
[1748857630631,7.42467489,2480.8,2480.5,4.03135509]
[1748857630847,7.42467489,2480.8,2480.6,4.03127117]
[1748857631348,0.55523152,2480.8,2480.7,4.03112024]
[1748857631641,0.9,2480.7,2480.6,4.03115083]
[1748857631845,0.9,2480.7,2480.4,4.03153698]
[1748857632178,1.54672315,2480.7,2480.5,4.03137612]
[1748857632347,1.54672315,2480.7,2480.1,5.18508045]
[1748857632546,0.9,2480.7,2480.5,4.03133797]
[1748857632745,0.7954,2480.6,2480.1,1.153]
[1748857632946,0.7954,2480.6,2480.4,4.03152315]
[1748857633376,0.7954,2480.6,2480.1,5.18503219]
[1748857633584,0.7954,2480.6,2480.1,1.153]
[1748857633826,0.85648434,2480.5,2480.1,1.153]
[1748857634078,5.0394,2480.4,2480.1,0.01]
[1748857634450,5.0394,2480.4,2480.2,4.03184635]
[1748857634653,5.0394,2480.4,2480.1,0.01]
[1748857634967,11.90884337,2480.4,2480.1,0.01]
[1748857635288,1.67968615,2480.3,2480.1,0.01]
[1748857635644,1.67968615,2480.3,2480.1,4.04202052]
[1748857635844,1.67968615,2480.3,2480.1,0.01]
[1748857636062,1.67968615,2480.3,2480.1,4.04200448]
[1748857636389,1.67968615,2480.3,2480.1,0.01]
[1748857636546,1.35885295,2480.2,2480.1,0.01]
[1748857636879,1.35885295,2480.2,2480.1,4.04209548]
[1748857637042,1.35885295,2480.2,2480.1,0.01]
[1748857638162,1.35885295,2480.2,2480.1,4.04209548]
[1748857638544,5.0394,2480.4,2480.2,4.03192565]
[1748857639385,5.0394,2480.4,2480.1,4.04200932]
[1748857639691,9.0710725,2480.4,2480.1,0.01]
[1748857640250,5.0394,2480.4,2480.1,0.01]
[1748857640454,0.58958843,2480.3,2480.1,0.01]
[1748857640671,4.62137215,2480.3,2480.1,0.01]
[1748857640886,0.58958843,2480.3,2480.1,0.01]
[1748857641268,4.62135919,2480.3,2480.1,0.01]
[1748857641465,5.3560329,2480.2,2480.1,0.01]
[1748857641670,18.12601886,2480.2,2480.1,0.01]
[1748857642200,0.7741,2479.5,2479.1,4.04362453]
[1748857642409,8.26834844,2479.4,2479.1,0.01]
[1748857642650,4.235,2479.4,2479.1,0.01]
[1748857642957,7.64354337,2479.5,2479.1,0.01]
[1748857642958,0.7741,2479.5,2479.4,4.03323384]
[1748857643162,5.0081,2479.5,2479.4,4.03323384]
[1748857643406,5.0081,2479.5,2479.3,4.03333902]
[1748857644097,5.0081,2479.5,2479.4,4.03323384]
[1748857644264,0.8297,2479.8,2479.4,4.03323384]
[1748857644464,4.232,2479.7,2479.5,4.03299459]
[1748857644703,4.232,2479.7,2479.5,4.03297712]
[1748857645260,0.8297,2479.8,2479.2,0.8217]
[1748857645464,5.0627,2479.8,2479.7,4.03274589]
[1748857645885,4.232,2479.9,2479.7,4.03274589]
[1748857646473,4.232,2479.9,2479.6,4.03285038]
[1748857646670,4.232,2479.9,2479.7,4.03271485]
[1748857647093,4.232,2479.9,2479.7,4.0326765]
[1748857647300,5.47519434,2479.9,2479.6,4.03282532]
[1748857647498,5.47519434,2479.9,2479.7,4.03267121]
[1748857647970,5.47519434,2479.9,2479.6,4.03282708]
[1748857648375,5.47519434,2479.9,2479.3,4.03336393]
[1748857648604,5.47519434,2479.9,2479.2,0.8217]
[1748857648605,1.17720407,2480.0,2479.8,4.03258327]
[1748857648765,4.231,2479.9,2479.8,4.03258327]
[1748857649102,4.231,2479.9,2479.7,4.03265715]
[1748857650974,4.231,2479.9,2479.3,5.17737331]
[1748857650975,0.8141,2480.2,2479.4,0.04032779]
[1748857651179,4.23,2480.4,2480.1,4.03196349]
[1748857651479,0.423,2480.3,2480.1,4.03196349]
[1748857651891,0.423,2480.3,2480.0,4.03217068]
[1748857652373,0.423,2480.3,2479.8,4.03254912]
[1748857652374,0.423,2480.3,2479.9,4.03233227]
[1748857652582,4.45480841,2480.3,2479.9,4.03241071]
[1748857652797,0.423,2480.3,2479.9,4.03241071]
[1748857653298,1.55541321,2480.2,2479.9,4.03241071]
[1748857654196,1.55541321,2480.2,2480.0,4.03223102]
[1748857654452,0.40100815,2480.3,2480.1,4.03209548]
[1748857654734,4.224,2480.4,2480.3,4.03177035]
[1748857654895,0.8141,2480.6,2480.5,4.03144527]
[1748857655091,0.8141,2480.6,2480.4,4.03153399]
[1748857655629,5.0371,2480.6,2480.5,4.03144527]
[1748857655849,0.9,2480.7,2480.4,4.0315399]
[1748857656008,0.9,2480.7,2480.0,0.8305]
[1748857656009,4.225,2480.6,2480.5,4.03144527]
[1748857656208,4.225,2480.6,2480.4,4.03152265]
[1748857656442,4.225,2480.6,2480.5,4.03144527]
[1748857656753,0.9,2480.7,2480.6,4.03128275]
[1748857659351,0.9,2480.7,2480.6,5.02609337]
[1748857659649,4.222,2481.3,2480.4,4.03144679]
[1748857659650,11.89764337,2480.9,2480.4,4.03144679]
[1748857659851,4.224,2480.8,2480.6,4.03118864]
[1748857660052,4.224,2480.8,2480.7,4.03112024]
[1748857660235,4.223,2481.0,2480.9,4.03079527]
[1748857660447,0.8172,2481.3,2481.0,4.03054371]
[1748857660448,4.227,2481.2,2481.0,4.03054371]
[1748857660638,4.73142,2481.2,2481.0,4.03054371]
[1748857660944,4.73142,2481.2,2481.1,4.03047035]
[1748857661251,4.73142,2481.2,2481.0,4.03056159]
[1748857661447,11.60086337,2481.2,2480.7,4.81017698]
[1748857661625,11.60086337,2481.2,2481.0,4.03063243]
[1748857662026,0.50442,2481.2,2481.1,4.03047035]
[1748857662226,5.0412,2481.3,2480.7,0.7791]
[1748857662432,5.0412,2481.3,2481.0,4.03055784]
[1748857662763,5.0412,2481.3,2480.8,4.03095775]
[1748857662764,5.0432,2481.3,2480.8,4.03095775]
[1748857663058,5.0432,2481.3,2480.6,4.03125536]
[1748857663059,0.7909,2481.0,2480.6,4.03125536]
[1748857663215,6.86944337,2480.8,2480.6,4.03125536]
[1748857663415,8.05817771,2480.8,2480.5,4.03141504]
[1748857663719,8.05817771,2480.8,2480.3,1.131]
[1748857663934,4.227,2480.9,2480.7,4.03104683]
[1748857664135,0.7909,2481.0,2480.9,4.03079527]
[1748857664330,5.0159,2481.0,2480.3,1.131]
[1748857664536,0.7731,2481.2,2480.9,4.03079527]
[1748857664732,4.227,2481.1,2481.0,4.0306328]
[1748857664931,0.54042235,2481.1,2481.0,4.0306328]
[1748857665131,0.7731,2481.2,2481.0,4.0306328]
[1748857665533,0.9,2481.1,2481.0,4.0306328]
[1748857666838,0.9,2481.1,2481.0,5.20193663]
[1748857667058,0.9,2481.1,2481.0,5.9929328]
[1748857667240,5.0117,2481.6,2481.4,4.02996303]
[1748857667440,12.45586089,2481.6,2481.4,4.02996303]
[1748857667958,11.09444337,2481.6,2481.5,4.02982067]
[1748857668558,11.09444337,2481.6,2481.4,4.02990829]
[1748857668727,4.222,2481.5,2481.4,4.02990829]
[1748857669158,4.222,2481.5,2481.1,4.03041358]
[1748857669337,4.222,2481.5,2481.2,4.03021603]
[1748857669538,4.222,2481.5,2481.3,4.03007967]
[1748857669757,4.222,2481.5,2481.4,4.02998307]
[1748857670136,4.222,2481.5,2481.3,4.03006059]
[1748857670560,5.122,2481.5,2481.2,4.03023731]
[1748857671332,5.122,2481.5,2481.3,4.03014285]
[1748857672168,5.122,2481.5,2481.2,4.03024649]
[1748857672373,5.122,2481.5,2481.3,4.03012193]
[1748857672864,5.122,2481.5,2481.2,4.03021229]
[1748857673069,5.122,2481.5,2481.3,4.03006343]
[1748857673271,5.122,2481.5,2481.0,1.9623]
[1748857673472,9.15182694,2481.5,2481.0,1.9623]
[1748857673660,5.122,2481.5,2481.1,4.03045468]
[1748857674366,5.122,2481.5,2481.2,4.03022707]
[1748857674557,6.32114434,2481.5,2481.1,4.03039692]
[1748857674754,6.32114434,2481.5,2481.0,1.9623]
[1748857674937,6.32114434,2481.5,2481.2,4.03025356]
[1748857675137,6.32114434,2481.5,2481.0,1.9623]
[1748857675138,6.32114434,2481.5,2481.1,4.03041277]
[1748857675338,6.86944337,2481.3,2480.4,8.0]
[1748857675546,6.86944337,2481.3,2481.0,4.03051159]
[1748857675758,6.86944337,2481.3,2481.1,4.03039965]
[1748857675987,6.86944337,2481.3,2480.9,4.03070463]
[1748857676282,6.86944337,2481.3,2480.9,4.03070231]
[1748857676462,6.86944337,2481.3,2481.0,4.03061087]
[1748857676672,6.86944337,2481.3,2480.6,12.03121033]
[1748857676870,0.8269,2481.4,2481.2,4.03030791]
[1748857677074,5.121,2481.5,2481.3,4.03006417]
[1748857677602,5.121,2481.5,2481.2,4.03022984]
[1748857677748,5.121,2481.5,2481.1,4.03037386]
[1748857678057,5.121,2481.5,2481.1,4.03037299]
[1748857678262,5.121,2481.5,2481.1,4.03047035]
[1748857678459,5.121,2481.5,2481.0,0.7512]
[1748857678885,5.121,2481.5,2481.1,4.03031345]
[1748857679047,5.121,2481.5,2481.2,4.03029795]
[1748857679361,5.121,2481.5,2481.1,4.03037802]
[1748857679555,10.82890672,2481.5,2481.0,4.0305137]
[1748857679759,10.82890672,2481.5,2480.8,0.787]
[1748857679760,6.86944337,2481.3,2480.9,4.0306817]
[1748857680147,6.86944337,2481.3,2481.0,4.03053671]
[1748857680347,6.86944337,2481.3,2480.9,4.03071339]
[1748857680582,6.86944337,2481.3,2480.6,0.787]
[1748857680583,4.81751677,2481.2,2480.6,4.8182066]
[1748857680788,0.812,2480.9,2480.4,1.131]
[1748857680948,6.86944337,2480.7,2480.4,5.16253934]
[1748857681355,6.86944337,2480.7,2480.5,4.0314239]
[1748857681600,4.22,2480.8,2480.5,4.0314239]
[1748857681894,11.08944337,2480.8,2480.5,4.03136316]
[1748857682198,11.99571663,2480.8,2480.5,4.03137574]
[1748857682369,11.08944337,2480.8,2480.5,4.03137574]
[1748857682775,11.08944337,2480.8,2480.4,5.16253977]
[1748857682978,11.08944337,2480.8,2479.9,8.25227657]
[1748857682979,11.08944337,2480.8,2480.0,0.7889]
[1748857683177,6.86944337,2480.5,2480.0,1.9199]
[1748857683371,11.08944337,2480.5,2480.2,4.03178576]
[1748857683570,11.08944337,2480.5,2480.2,4.0319329]
[1748857683990,11.08944337,2480.5,2480.0,5.95213171]
[1748857683991,11.08944337,2480.5,2480.0,1.9199]
[1748857684191,11.08944337,2480.5,2480.3,4.03171628]
[1748857684880,4.22,2480.5,2480.1,4.03195733]
[1748857685172,0.8159,2480.3,2479.9,5.16134408]
[1748857685906,0.8159,2480.3,2480.1,4.03199915]
[1748857686210,6.86944337,2480.4,2480.2,4.03186294]
[1748857687295,6.86944337,2480.4,2479.9,5.16134854]
[1748857687489,4.9857,2480.5,2480.0,5.49956252]
[1748857687715,4.6277325,2480.5,2480.4,4.0316078]
[1748857688009,4.221,2480.5,2480.3,4.03168139]
[1748857688371,4.221,2480.6,2480.4,4.03148709]
[1748857688568,4.221,2480.6,2480.1,0.8088]
[1748857688771,8.25231008,2480.6,2480.2,4.03177643]
[1748857688979,8.25231008,2480.6,2480.1,5.16102715]
[1748857689208,6.86944337,2480.4,2480.0,4.0321875]
[1748857689370,6.86944337,2480.4,2479.9,4.03242066]